bitfinex/quotes_ETHUSD_20250523
["timestamp","ask_amount","ask_price","bid_price","bid_amount"]
[1747982833653,3.76293508,2657.5,2656.2,17.60614233]
[1747982833654,3.7642539,2656.6,2656.2,17.60614233]
[1747982833814,3.7642539,2656.6,2656.4,11.276]
[1747982834211,3.76338273,2657.2,2656.4,11.276]
[1747982834388,3.76338273,2657.2,2656.5,1.1276]
[1747982834389,3.76409541,2656.7,2656.5,1.1276]
[1747982834588,3.76463501,2656.3,2656.2,12.50314233]
[1747982834901,3.76463501,2656.3,2656.2,28.88314233]
[1747982835423,3.76463501,2656.3,2656.2,45.12114233]
[1747982835591,3.76453387,2656.4,2656.2,45.12114233]
[1747982835794,3.76463501,2656.3,2656.2,33.84514233]
[1747982835997,3.76463501,2656.3,2656.2,43.894]
[1747982836392,3.76378486,2656.9,2656.2,43.894]
[1747982836599,3.76462639,2656.4,2656.2,43.894]
[1747982836798,3.76463501,2656.3,2656.2,43.894]
[1747982836994,3.76463501,2656.3,2656.2,32.619]
[1747982837322,3.76463501,2656.3,2656.2,40.619]
[1747982837525,3.76463501,2656.3,2656.2,32.619]
[1747982839625,3.76463501,2656.3,2656.2,40.619]
[1747982840128,3.76463501,2656.3,2656.2,32.619]
[1747982840426,4.51754851,2656.3,2656.2,32.549]
[1747982841423,3.76463501,2656.3,2656.2,32.549]
[1747982842999,3.76463501,2656.3,2656.2,40.549]
[1747982843525,3.76454586,2656.4,2656.3,8.0]
[1747982843726,7.3162,2656.9,2656.3,8.0]
[1747982843929,1.3162,2656.9,2656.4,11.279]
[1747982844140,1.2737,2657.2,2656.5,8.0]
[1747982844307,3.76399382,2656.8,2656.5,8.0]
[1747982844640,3.76420989,2656.6,2656.5,8.0]
[1747982844845,3.76460213,2656.4,2656.3,8.0]
[1747982845041,3.76460213,2656.4,2656.3,35.591]
[1747982845428,3.76420989,2656.6,2656.3,35.591]
[1747982845809,3.76449329,2656.4,2656.3,8.0]
[1747982846019,3.76449329,2656.4,2656.3,24.312]
[1747982846901,3.76463501,2656.3,2656.2,16.238]
[1747982847219,4.5175195,2656.3,2656.2,40.55]
[1747982847420,3.76463501,2656.3,2656.2,40.55]
[1747982848136,3.76463501,2656.3,2656.2,16.238]
[1747982849222,3.76463501,2656.3,2656.2,24.238]
[1747982849915,3.76443134,2656.5,2656.3,8.0]
[1747982850114,3.76449329,2656.4,2656.3,8.0]
[1747982851447,3.76423417,2656.6,2656.3,8.0]
[1747982851448,3.76438231,2656.5,2656.3,8.0]
[1747982851647,3.76416642,2656.7,2656.3,10.4238]
[1747982851851,3.76435206,2656.5,2656.3,10.4238]
[1747982853065,3.76449329,2656.4,2656.3,10.4238]
[1747982853261,3.76449329,2656.4,2656.3,8.0]
[1747982853451,1.4025,2657.0,2656.3,8.0]
[1747982853452,3.76416558,2656.7,2656.3,8.0]
[1747982853648,3.76373761,2657.0,2656.5,8.0]
[1747982853846,3.76350744,2657.1,2656.7,8.0529]
[1747982854055,3.76350744,2657.1,2656.7,0.0529]
[1747982854358,3.76392652,2656.8,2656.7,8.0529]
[1747982854532,3.76435159,2656.5,2656.4,0.0529]
[1747982854732,3.76435159,2656.5,2656.4,35.6439]
[1747982855566,1.3951,2657.1,2656.5,8.0]
[1747982855768,3.7636432,2657.0,2656.5,8.0]
[1747982855986,1.2887,2657.3,2656.5,8.0]
[1747982856303,3.76420989,2656.6,2656.5,8.0]
[1747982858145,1.2887,2657.3,2656.5,8.0]
[1747982858345,3.76391936,2656.9,2656.5,8.0]
[1747982858780,3.76401541,2656.8,2656.5,8.0]
[1747982859142,3.76420989,2656.6,2656.5,8.0]
[1747982859542,3.76420989,2656.6,2656.5,19.278]
[1747982859785,3.76449329,2656.4,2656.3,8.0]
[1747982859999,3.76449329,2656.4,2656.3,24.312]
[1747982861896,5.14523501,2656.3,2656.2,16.238]
[1747982862095,5.14523501,2656.3,2655.3,0.0529]
[1747982862270,3.76530627,2655.9,2655.5,27.519]
[1747982863200,5.14523501,2656.3,2655.6,8.0]
[1747982863360,3.76534578,2655.8,2655.6,8.0]
[1747982863698,3.76519245,2656.0,2655.6,8.0]
[1747982863911,3.76481678,2656.2,2655.7,0.0529]
[1747982864126,3.76481678,2656.2,2655.8,8.0]
[1747982864127,3.76478398,2656.2,2655.8,8.0]
[1747982864411,3.76478398,2656.2,2656.0,8.0]
[1747982864615,3.76491848,2656.1,2656.0,8.0]
[1747982865104,3.76449329,2656.4,2656.0,16.312]
[1747982865308,3.76477674,2656.2,2656.1,8.0]
[1747982865711,3.76491848,2656.1,2656.0,8.0]
[1747982865906,3.76491848,2656.1,2656.0,24.312]
[1747982867279,5.16371848,2656.1,2656.0,24.312]
[1747982867718,1.3988,2656.1,2656.0,8.0]
[1747982867916,5.16372566,2656.1,2656.0,8.0]
[1747982868107,6.05658804,2656.1,2656.0,8.0]
[1747982869117,3.76492566,2656.1,2656.0,8.0]
[1747982869978,3.76465768,2656.3,2656.0,8.0]
[1747982870178,3.76464185,2656.3,2656.0,8.0]
[1747982870420,1.2856,2656.6,2656.0,8.0]
[1747982870589,1.2856,2657.0,2656.1,0.0529]
[1747982870790,3.76434174,2656.6,2656.1,0.0529]
[1747982871009,3.76443461,2656.5,2656.1,0.0529]
[1747982871375,1.2856,2657.0,2656.1,0.0529]
[1747982871607,1.2856,2657.0,2656.1,2.48949]
[1747982871809,3.76418277,2656.7,2656.1,6.25438076]
[1747982872113,3.76422924,2656.6,2656.1,2.48949]
[1747982872488,3.76396054,2656.8,2656.1,6.25439622]
[1747982872707,3.76424545,2656.6,2656.1,2.48949]
[1747982872906,3.76440989,2656.5,2656.2,0.80119768]
[1747982873108,3.76463501,2656.3,2656.1,0.0529]
[1747982873320,3.76454307,2656.4,2656.2,19.279]
[1747982873499,3.764252,2656.6,2656.3,8.0]
[1747982873696,3.764252,2656.6,2656.5,8.0]
[1747982873895,3.764252,2656.6,2656.5,51.772]
[1747982874096,3.764252,2656.6,2656.5,40.493]
[1747982874304,3.764252,2656.6,2656.5,51.772]
[1747982874921,3.764252,2656.6,2656.5,24.242]
[1747982875121,3.764252,2656.6,2656.5,40.493]
[1747982875596,4.64880424,2656.6,2656.5,32.492]
[1747982875801,3.76534377,2655.8,2655.7,16.242]
[1747982875998,3.76534377,2655.8,2655.7,32.492]
[1747982876326,3.76456319,2656.4,2655.7,32.492]
[1747982876327,1.2937,2656.2,2655.8,8.0]
[1747982876525,3.765202,2655.9,2655.7,32.5449]
[1747982876724,3.76534377,2655.8,2655.7,40.492]
[1747982877091,3.76534377,2655.8,2655.7,32.492]
[1747982877302,3.76534377,2655.8,2655.7,40.492]
[1747982878528,3.76534377,2655.8,2655.7,16.242]
[1747982878826,3.76534377,2655.8,2655.7,40.493]
[1747982878985,3.76534377,2655.8,2655.7,32.493]
[1747982879489,4.51839835,2655.8,2655.7,40.493]
[1747982879993,5.79949835,2655.8,2655.7,24.242]
[1747982880191,1.8917,2655.7,2655.1,0.02]
[1747982880434,5.10789463,2655.2,2655.1,0.02]
[1747982880801,3.76747164,2654.3,2654.2,16.243]
[1747982881889,1.3417,2655.1,2654.3,8.0]
[1747982882089,1.3417,2655.4,2654.4,0.0657]
[1747982882299,1.3417,2655.4,2654.4,0.10336825]
[1747982882586,1.3417,2655.4,2654.5,8.0]
[1747982882790,5.10764312,2655.4,2654.7,8.0]
[1747982883004,3.76616963,2655.3,2654.9,8.0]
[1747982883200,3.76593123,2655.4,2655.0,0.0657]
[1747982883401,3.76582726,2655.5,2655.2,8.0]
[1747982883622,1.3267,2655.7,2655.2,24.246]
[1747982883808,3.76579362,2655.5,2655.2,24.246]
[1747982884137,1.407,2656.0,2655.2,24.246]
[1747982884308,3.7660528,2655.3,2655.2,24.246]
[1747982884513,3.76561145,2655.7,2655.2,40.501]
[1747982884708,3.7660528,2655.3,2655.2,40.501]
[1747982884924,5.80104802,2655.3,2655.2,16.246]
[1747982885125,3.76619463,2655.2,2654.9,16.255]
[1747982885315,3.76647834,2655.0,2654.9,8.0]
[1747982885496,3.76647834,2655.0,2654.9,24.255]
[1747982885702,3.76647834,2655.0,2654.9,16.255]
[1747982885901,3.76647834,2655.0,2654.9,24.255]
[1747982886126,3.76647834,2655.0,2654.9,16.255]
[1747982886499,3.76647834,2655.0,2654.9,24.255]
[1747982886699,4.51975984,2655.0,2654.9,24.255]
[1747982886900,3.76647834,2655.0,2654.9,24.255]
[1747982890549,3.76647349,2655.1,2655.0,8.0]
[1747982891851,3.76647834,2655.0,2654.9,0.0657]
[1747982892037,3.76647834,2655.0,2654.9,35.6067]
[1747982892241,3.76647834,2655.0,2654.3,3.76738389]
[1747982892242,5.05901359,2654.2,2654.1,0.02]
[1747982892551,3.76761359,2654.2,2654.1,0.02]
[1747982892747,3.76761359,2654.2,2654.1,16.277]
[1747982892909,3.76761359,2654.2,2654.1,24.277]
[1747982893252,3.76761359,2654.2,2654.1,40.529]
[1747982893856,3.76761359,2654.2,2654.1,32.529]
[1747982894061,3.76761359,2654.2,2654.1,43.815]
[1747982894263,3.76761359,2654.2,2654.1,51.815]
[1747982894826,3.76761359,2654.2,2654.1,24.272]
[1747982895151,3.76752742,2654.3,2654.2,8.0]
[1747982895735,3.76752742,2654.3,2654.2,19.286]
[1747982896718,3.76752742,2654.3,2654.2,24.26]
[1747982898626,3.76752742,2654.3,2653.2,3.76899314]
[1747982898627,5.11745921,2654.1,2652.6,17.5537]
[1747982898835,5.11747533,2654.1,2653.2,16.26]
[1747982899042,1.3497,2654.1,2653.2,17.5617]
[1747982899242,3.76842606,2653.7,2653.3,8.0]
[1747982899442,3.76842606,2653.7,2653.2,17.5617]
[1747982899443,3.76842606,2653.7,2653.5,8.0]
[1747982899750,3.76832347,2653.7,2653.6,51.803]
[1747982900677,3.76832347,2653.7,2653.6,16.254]
[1747982900852,3.76832347,2653.7,2653.6,32.465]
[1747982901236,3.76832347,2653.7,2653.6,40.465]
[1747982902073,3.76832347,2653.7,2653.6,24.254]
[1747982902236,4.52197949,2653.7,2653.6,24.254]
[1747982902441,5.81797949,2653.7,2653.6,40.466]
[1747982906065,3.76832347,2653.7,2653.6,40.466]
[1747982907078,3.76832347,2653.7,2653.6,24.254]
[1747982907279,3.76832347,2653.7,2653.6,40.468]
[1747982910767,3.76832347,2653.7,2653.6,24.254]
[1747982910970,3.76903361,2653.2,2653.1,0.02]
[1747982911280,3.76903361,2653.2,2653.1,16.235]
[1747982911512,3.76903361,2653.2,2653.1,24.235]
[1747982911705,3.76903361,2653.2,2653.1,16.235]
[1747982912306,3.76903361,2653.2,2653.1,24.235]
[1747982912511,1.392,2654.7,2653.2,9.2995]
[1747982912822,3.76842733,2653.7,2653.5,1.0495]
[1747982912979,3.76818147,2653.8,2653.7,8.0]
[1747982913179,4.14499962,2653.8,2653.7,8.0]
[1747982913419,3.76818147,2653.8,2653.7,8.0]
[1747982913623,1.3338,2653.8,2653.6,9.98459414]
[1747982913788,3.76832347,2653.7,2653.6,17.98459414]
[1747982914183,3.76903361,2653.2,2653.1,16.235]
[1747982914727,3.76903361,2653.2,2653.1,24.235]
[1747982915017,3.76903361,2653.2,2653.1,16.235]
[1747982915392,3.76903361,2653.2,2653.1,24.235]
[1747982915922,3.76893664,2653.3,2653.2,8.0]
[1747982916124,3.76880445,2653.4,2653.2,8.0]
[1747982916325,3.76771136,2654.2,2653.3,1.1776]
[1747982916622,3.76835434,2653.7,2653.3,1.1776]
[1747982916788,3.76810529,2653.9,2653.3,1.1776]
[1747982916985,1.2814,2654.3,2653.2,0.55]
[1747982917186,3.7680152,2654.0,2653.3,3.1845119]
[1747982917389,3.76826663,2653.8,2653.3,3.1845119]
[1747982917588,3.76808166,2653.9,2653.3,6.95339486]
[1747982917824,3.76819299,2653.8,2653.3,3.1845119]
[1747982918023,3.76852301,2653.6,2653.4,27.507]
[1747982918592,0.37680152,2654.0,2653.5,16.259]
[1747982918898,3.76839171,2653.7,2653.5,16.259]
[1747982919099,3.76839171,2653.7,2653.6,8.0]
[1747982919526,3.76846548,2653.6,2653.5,24.259]
[1747982919728,3.76846548,2653.6,2653.5,51.766]
[1747982920928,3.76846548,2653.6,2653.5,40.475]
[1747982921297,3.76846548,2653.6,2653.5,24.259]
[1747982921501,3.76846548,2653.6,2653.5,40.475]
[1747982921927,4.6577012,2653.6,2653.5,40.475]
[1747982922827,4.6577012,2653.6,2653.5,32.475]
[1747982923951,4.6577012,2653.6,2653.5,16.259]
[1747982924452,4.6577012,2653.6,2653.5,32.475]
[1747982925353,3.76846548,2653.6,2653.5,40.475]
[1747982926356,5.04436548,2653.6,2653.5,40.475]
[1747982927913,3.76903361,2653.2,2653.1,0.02]
[1747982928156,5.06633361,2653.2,2653.1,16.236]
[1747982928356,5.06633361,2653.2,2653.1,24.236]
[1747982930233,3.76903361,2653.2,2653.1,24.236]
[1747982931018,3.76903361,2653.2,2653.1,8.02]
[1747982931219,4.66125678,2653.2,2653.1,24.22]
[1747982931450,3.76903361,2653.2,2653.1,24.22]
[1747982932455,3.76893755,2653.3,2653.2,8.0]
[1747982932658,3.76903361,2653.2,2653.1,0.02]
[1747982932845,3.76903361,2653.2,2653.1,35.514]
[1747982935575,3.76894608,2653.3,2653.1,35.514]
[1747982935875,0.38384654,2654.8,2653.3,0.55]
[1747982935876,1.3559,2654.2,2653.3,0.55]
[1747982936046,3.76814046,2653.9,2653.3,0.55]
[1747982936249,3.76889156,2653.3,2653.2,8.0]
[1747982936436,3.76903361,2653.2,2653.1,0.02]
[1747982936641,3.76903361,2653.2,2653.1,24.221]
[1747982936870,3.76903361,2653.2,2653.1,16.221]
[1747982937075,3.76903361,2653.2,2653.1,24.221]
[1747982938666,4.8428713,2653.2,2653.1,0.02]
[1747982938863,4.8428713,2653.2,2653.1,16.221]
[1747982939080,4.8428713,2653.2,2653.1,24.221]
[1747982940255,3.76903361,2653.2,2653.1,24.221]
[1747982941367,5.09183361,2653.2,2653.1,0.02]
[1747982943183,10.51674296,2654.3,2653.1,0.0615]
[1747982943184,1.3489,2653.6,2653.1,0.0615]
[1747982943365,3.76890323,2653.3,2653.1,0.0615]
[1747982943675,1.3662,2653.9,2653.2,27.495]
[1747982943878,1.3662,2653.9,2653.1,0.0615]
[1747982943879,3.76884256,2653.4,2653.3,27.495]
[1747982944177,3.76874952,2653.4,2653.3,35.495]
[1747982944767,1.291,2654.5,2653.4,8.0]
[1747982944980,3.76827331,2653.8,2653.4,8.0]
[1747982945281,3.76857277,2653.6,2653.4,8.0]
[1747982945583,3.7683186,2653.8,2653.4,8.0]
[1747982945584,0.50580807,2654.4,2653.4,8.0]
[1747982945779,5.05828681,2654.5,2653.5,0.0415]
[1747982945937,3.76818443,2653.8,2653.5,0.0415]
[1747982946141,3.76840565,2653.7,2653.5,0.0415]
[1747982946341,3.76840565,2653.7,2653.6,19.293]
[1747982946581,3.76840565,2653.7,2653.6,8.0]
[1747982946876,3.76887781,2653.4,2653.3,16.202]
[1747982947063,3.76887781,2653.4,2653.3,24.202]
[1747982947446,3.76903361,2653.2,2653.1,0.02]
[1747982947676,3.76903361,2653.2,2653.1,24.22]
[1747982948057,3.76903361,2653.2,2653.1,16.22]
[1747982948565,3.76903361,2653.2,2653.1,24.22]
[1747982949509,3.76903361,2653.2,2653.1,8.02]
[1747982949707,4.52282642,2653.2,2653.1,24.22]
[1747982950269,4.52282642,2653.2,2653.1,16.22]
[1747982950613,4.52282642,2653.2,2653.1,16.221]
[1747982950798,3.76894894,2653.3,2653.1,16.221]
[1747982950998,3.76903361,2653.2,2653.1,0.02]
[1747982951308,3.76903361,2653.2,2653.1,16.221]
[1747982951813,3.76903361,2653.2,2653.1,24.221]
[1747982952301,4.14593697,2653.2,2653.1,24.221]
[1747982952617,3.76889587,2653.3,2653.1,24.221]
[1747982952815,3.76881123,2653.4,2653.1,24.221]
[1747982953123,5.12418581,2653.6,2653.2,8.0]
[1747982953124,3.76846548,2653.6,2653.2,8.0]
[1747982953279,3.76853066,2653.6,2653.2,8.0]
[1747982953480,1.3641,2654.1,2653.2,10.8031807]
[1747982953679,1.3641,2654.1,2653.3,8.0]
[1747982953912,3.76843944,2653.7,2653.5,8.0]
[1747982954079,3.76818147,2653.8,2653.7,8.0]
[1747982954276,3.76818147,2653.8,2653.7,0.99054592]
[1747982954476,3.76832347,2653.7,2653.6,16.201]
[1747982955286,3.76903361,2653.2,2653.1,0.02]
[1747982955486,5.12283361,2653.2,2653.1,0.02]
[1747982958015,5.04628614,2652.6,2652.5,2.92613636]
[1747982961726,3.76988614,2652.6,2652.5,2.92613636]
[1747982962796,3.76988614,2652.6,2652.5,19.11613636]
[1747982963007,4.52384934,2652.6,2652.5,19.11613636]
[1747982963221,3.76988614,2652.6,2652.5,2.92613636]
[1747982963404,3.76988614,2652.6,2652.5,19.11613636]
[1747982965031,5.04278614,2652.6,2652.5,2.92613636]
[1747982966797,3.76988614,2652.6,2652.5,2.92613636]
[1747982966998,3.76988614,2652.6,2652.5,27.19313636]
[1747982967224,3.76988614,2652.6,2652.5,43.38313636]
[1747982968530,3.76926862,2653.1,2652.5,43.50483636]
[1747982968700,3.76822688,2653.8,2652.7,0.1217]
[1747982968900,3.7686195,2653.5,2653.2,0.1217]
[1747982969106,3.76790922,2654.0,2653.4,8.0]
[1747982969303,3.76832347,2653.7,2653.6,8.0]
[1747982969504,5.16592347,2653.7,2653.6,8.0]
[1747982969727,5.16592347,2653.7,2653.6,24.19]
[1747982969924,6.05933398,2653.7,2653.6,24.19]
[1747982970128,6.05933398,2653.7,2653.6,16.19]
[1747982971041,3.76846548,2653.6,2653.5,16.267]
[1747982971244,3.76889156,2653.3,2653.2,24.19]
[1747982971446,4.52265569,2653.3,2653.2,24.189]
[1747982971631,5.92025569,2653.3,2653.2,24.189]
[1747982973032,3.76960193,2652.8,2652.7,16.267]
[1747982973652,3.76960193,2652.8,2652.7,32.456]
[1747982973801,3.76960193,2652.8,2652.7,40.456]
[1747982974124,3.76944641,2653.0,2652.8,8.0]
[1747982974295,3.76942277,2653.0,2652.8,19.295]
[1747982974915,0.89341051,2653.7,2652.8,19.295]
[1747982975116,0.89341051,2653.7,2653.0,8.0]
[1747982975322,3.76898227,2653.3,2653.1,0.1217]
[1747982975501,3.76903361,2653.2,2653.1,0.1217]
[1747982975803,3.76889156,2653.3,2653.2,8.0]
[1747982976003,3.76903361,2653.2,2653.1,0.1217]
[1747982976205,3.76903361,2653.2,2653.1,35.6057]
[1747982976534,3.76903361,2653.2,2653.1,24.189]
[1747982978304,3.76903361,2653.2,2653.1,8.0]
[1747982978535,5.12738614,2652.6,2652.5,2.92613636]
[1747982979041,3.76988614,2652.6,2652.5,2.92613636]
[1747982979232,3.76988614,2652.6,2652.5,2.92405872]
[1747982979749,3.76988614,2652.6,2652.5,10.92405872]
[1747982981720,3.76988614,2652.6,2652.5,22.22005872]
[1747982982949,3.76985013,2652.7,2652.6,8.0]
[1747982983156,3.76985013,2652.7,2652.6,24.19]
[1747982983730,0.37688936,2653.2,2652.6,24.19]
[1747982983958,5.16992417,2653.6,2652.7,16.266]
[1747982984174,3.76960193,2652.8,2652.7,40.456]
[1747982984382,1.3388,2653.7,2652.9,0.1217]
[1747982984682,3.76873453,2653.5,2653.1,8.0]
[1747982984842,3.76889156,2653.3,2653.2,24.19]
[1747982985776,1.2969,2654.5,2653.3,8.1217]
[1747982985973,6.0570697,2654.7,2653.7,0.1217]
[1747982986173,3.76789751,2654.0,2653.9,8.0]
[1747982986379,3.76750057,2654.3,2653.9,8.0]
[1747982986677,3.76752245,2654.3,2653.9,8.0]
[1747982986834,3.76737657,2654.4,2653.9,8.0]
[1747982987242,3.76747435,2654.3,2653.9,8.0]
[1747982987571,3.76706626,2654.6,2654.0,0.1217]
[1747982987882,3.76775554,2654.1,2654.0,0.1217]
[1747982988087,3.76775554,2654.1,2654.0,24.3107]
[1747982989043,3.7677108,2654.2,2654.1,8.0]
[1747982989479,1.85334687,2654.7,2654.1,8.0]
[1747982989658,3.7674752,2654.3,2654.1,8.0]
[1747982989860,3.7674752,2654.3,2654.1,10.43107]
[1747982990342,3.76761359,2654.2,2654.1,10.43107]
[1747982990744,3.76750478,2654.3,2654.1,10.43107]
[1747982991051,0.02,2654.9,2654.1,8.0]
[1747982991259,3.76761359,2654.2,2654.1,8.0]
[1747982991586,3.76772948,2654.2,2654.0,0.1217]
[1747982991791,3.76772948,2654.2,2654.1,35.479]
[1747982992447,3.76752653,2654.3,2654.2,8.0]
[1747982993581,0.02,2654.9,2654.2,8.0]
[1747982993785,3.76727043,2654.5,2654.2,8.0]
[1747982994896,3.76705729,2654.6,2654.4,8.0]
[1747982995097,0.02,2654.9,2654.4,8.0]
[1747982995399,3.76718779,2654.5,2654.4,8.0]
[1747982995871,3.76718779,2654.5,2654.4,1.92950586]
[1747982996199,3.76775554,2654.1,2654.0,0.1217]
[1747982996403,3.76775554,2654.1,2654.0,27.5927]
[1747982996560,3.76750161,2654.3,2654.0,27.5927]
[1747982996754,3.76761359,2654.2,2654.0,27.5927]
[1747982996956,3.76735941,2654.4,2654.0,27.5927]
[1747982997154,3.76742392,2654.4,2654.0,0.1217]
[1747982997395,0.02,2654.9,2654.1,27.471]
[1747982997778,3.76720538,2654.5,2654.2,8.0]
[1747982998362,0.02,2654.9,2654.4,0.1101]
[1747982998597,0.02,2654.9,2654.6,8.0]
[1747982998902,0.02,2654.9,2654.8,8.1101]
[1747982999150,0.02,2654.9,2654.8,51.8361]
[1747982999686,0.02,2654.9,2654.8,24.3671]
[1747983000130,0.02,2654.9,2654.8,51.8361]
[1747983000931,0.02,2654.9,2654.8,24.3671]
[1747983001127,0.02,2654.9,2654.8,54.39085833]
[1747983002390,0.02,2654.9,2654.8,16.257]
[1747983002593,3.78662021,2654.9,2654.8,32.435]
[1747983002831,3.78662021,2654.9,2654.5,8.0]
[1747983003133,3.76718779,2654.5,2654.4,16.178]
[1747983003342,3.76676209,2654.8,2654.5,8.0]
[1747983003835,3.76704588,2654.6,2654.5,8.0]
[1747983004527,1.4135,2654.9,2654.1,19.288]
[1747983004528,3.76761359,2654.2,2654.1,19.288]
[1747983004691,3.76761359,2654.2,2654.1,35.466]
[1747983004891,0.02,2654.9,2654.1,35.5761]
[1747983005129,3.78673953,2654.9,2654.1,35.5761]
[1747983005337,3.76756701,2654.3,2654.1,35.5761]
[1747983005632,3.76756701,2654.3,2654.1,0.1101]
[1747983005633,3.76761359,2654.2,2654.1,0.1101]
[1747983005795,3.76761359,2654.2,2654.1,8.0]
[1747983005995,3.76789751,2654.0,2653.9,16.255]
[1747983006192,3.76789751,2654.0,2653.9,43.721]
[1747983006503,3.76772438,2654.2,2654.0,8.0]
[1747983006710,3.76775554,2654.1,2654.0,8.0]
[1747983007402,3.76775554,2654.1,2654.0,35.466]
[1747983007747,3.76775554,2654.1,2653.9,16.255]
[1747983007748,3.76789751,2654.0,2653.9,16.255]
[1747983008242,3.76789751,2654.0,2653.9,32.433]
[1747983008443,5.03283458,2654.0,2653.9,32.433]
[1747983010130,6.38003458,2654.0,2653.9,32.433]
[1747983012027,5.11393948,2653.9,2653.4,16.18]
[1747983012230,5.11464952,2653.4,2653.3,16.18]
[1747983013767,3.76931775,2653.0,2652.9,16.257]
[1747983013933,3.76931775,2653.0,2652.5,2.92405872]
[1747983013934,3.76988614,2652.6,2652.5,2.92405872]
[1747983014263,5.52027475,2652.6,2652.5,2.92405872]
[1747983014962,0.92698861,2652.6,2650.1,0.21612019]
[1747983015163,5.18339236,2651.4,2650.1,1.3449]
[1747983015333,3.77159236,2651.4,2651.3,49.81778788]
[1747983015724,1.4118,2652.4,2651.5,1.3249]
[1747983016066,1.4118,2652.8,2651.9,3.77077305]
[1747983016360,4.11754458,2652.9,2651.9,3.77077305]
[1747983016361,0.43674296,2653.3,2652.3,1.3249]
[1747983016560,0.43674296,2653.3,2652.5,8.0]
[1747983016766,0.43674296,2653.3,2652.7,8.0]
[1747983016929,0.43674296,2653.3,2652.8,10.01447983]
[1747983017263,0.24663444,2653.5,2653.0,1.3981]
[1747983017433,3.76877471,2653.4,2653.2,8.0]
[1747983017633,3.76846388,2653.7,2653.2,8.0]
[1747983017872,3.76833003,2653.7,2653.0,13.1673806]
[1747983018159,0.02,2653.9,2653.1,9.53457993]
[1747983018463,0.02,2653.9,2653.3,8.0]
[1747983018767,0.02,2653.9,2653.5,8.0]
[1747983019060,0.02,2653.9,2653.5,11.76849907]
[1747983019251,0.02,2653.9,2653.6,1.370974]
[1747983019454,0.02,2653.9,2653.7,0.9370974]
[1747983019637,0.02,2653.9,2653.8,18.109]
[1747983019841,3.7880727,2653.9,2653.8,18.109]
[1747983020041,3.7880727,2653.9,2653.5,8.0]
[1747983020336,0.02,2653.9,2653.8,18.109]
[1747983021164,3.78803948,2653.9,2653.8,18.109]
[1747983021323,0.33381566,2653.9,2653.8,26.109]
[1747983021529,0.33381566,2653.9,2653.8,28.7199]
[1747983021752,0.33381566,2653.9,2653.8,26.109]
[1747983022663,4.10185514,2653.9,2653.8,26.109]
[1747983022835,4.10185514,2653.9,2653.8,8.0]
[1747983023169,3.76860749,2653.5,2653.4,16.263]
[1747983023471,4.52231326,2653.5,2653.4,42.371]
[1747983023639,3.76860749,2653.5,2653.4,34.371]
[1747983023844,3.76860749,2653.5,2653.4,16.263]
[1747983024067,3.7696165,2652.8,2652.7,11.292]
[1747983024276,3.7696165,2652.8,2652.7,53.661]
[1747983024471,3.76914473,2653.2,2652.8,8.0]
[1747983024852,3.76872527,2653.5,2652.8,8.0]
[1747983025053,3.76878137,2653.4,2652.8,8.0]
[1747983025285,3.76896533,2653.3,2652.8,8.0]
[1747983025581,0.02,2653.9,2653.0,8.0]
[1747983025773,3.76841082,2653.7,2653.1,0.8]
[1747983025969,0.02,2653.9,2652.8,13.09348934]
[1747983026176,3.76869685,2653.5,2652.8,13.09348934]
[1747983027000,3.78809531,2653.9,2652.9,29.4]
[1747983027149,3.76917568,2653.1,2653.0,8.0]
[1747983027350,3.76917568,2653.1,2652.8,1.3239]
[1747983027569,3.76960193,2652.8,2652.7,16.261]
[1747983027769,3.76960193,2652.8,2652.7,53.661]
[1747983028162,3.76960193,2652.8,2652.7,24.261]
[1747983028460,3.76945983,2652.9,2652.8,8.0]
[1747983028661,1.3546,2653.9,2652.8,8.0]
[1747983028859,3.76868591,2653.5,2653.0,8.0]
[1747983029282,3.76833204,2653.7,2653.2,8.0]
[1747983029456,3.76833204,2653.7,2653.4,8.0]
[1747983029653,3.76833204,2653.7,2653.6,8.0]
[1747983029858,3.78804279,2653.9,2653.6,8.0]
[1747983030059,3.76819645,2653.8,2653.7,24.262]
[1747983030472,3.76819645,2653.8,2653.7,53.664]
[1747983031195,0.02,2653.9,2653.8,8.0]
[1747983033483,3.76846548,2653.6,2653.5,16.261]
[1747983033807,3.76846548,2653.6,2653.5,34.369]
[1747983034014,5.02866259,2653.6,2653.5,34.369]
[1747983034667,3.76846548,2653.6,2653.5,34.369]
[1747983036106,3.76846548,2653.6,2653.5,16.261]
[1747983036267,3.76846548,2653.6,2653.5,34.369]
[1747983038127,3.76846548,2653.6,2653.5,32.194238]
[1747983038327,3.76846548,2653.6,2653.5,40.194238]
[1747983038896,3.76835059,2653.7,2653.6,8.0]
[1747983040231,5.84141867,2653.7,2653.6,18.108]
[1747983040640,3.76889156,2653.3,2653.2,24.261]
[1747983040813,3.76889156,2653.3,2653.2,34.369]
[1747983041013,3.76889156,2653.3,2653.2,42.369]
[1747983042228,3.76880932,2653.4,2653.2,42.369]
[1747983042416,1.4156,2654.0,2653.3,11.75002344]
[1747983042632,3.76849952,2653.6,2653.3,11.75002344]
[1747983042832,3.76874952,2653.4,2653.3,8.0]
[1747983043004,5.14064952,2653.4,2653.3,26.108]
[1747983044142,3.76874952,2653.4,2653.3,26.108]
[1747983044862,3.76874952,2653.4,2653.3,37.4]
[1747983045701,3.76874952,2653.4,2653.3,8.0]
[1747983045929,3.76874952,2653.4,2653.3,37.4]
[1747983046339,3.76874952,2653.4,2653.3,29.197494]